fUST/lending_fUST_20251120
["ID","MTS","AMOUNT","RATE_DAILY","PERIOD"]
[394492120,1763628485109,-300.0,7.578e-05,2]
[394492121,1763628485131,-2.55390884,7.579e-05,2]
[394492123,1763628488042,-298.63682187,7.502e-05,2]
[394492125,1763628519688,-1.36317813,7.502e-05,2]
[394492126,1763628519714,-302.54918357,7.578e-05,2]
[394492127,1763628522484,-174.69062519,7.578e-05,2]
[394492128,1763628524092,-22.76019124,7.578e-05,2]
[394492129,1763628524115,-151.96620454,7.578e-05,2]
[394492130,1763628527704,-289.07629788,7.578e-05,2]
[394492131,1763628532265,-58.95749758,7.578e-05,2]
[394492132,1763628532286,-165.27524476,7.578e-05,2]
[394492133,1763628533949,-297.6757404,7.502e-05,2]
[394492134,1763628538627,150.0,0.00012144,30]
[394492135,1763628539051,189.06,0.00012722,30]
[394492136,1763628539470,283.59,0.00013301,30]
[394492137,1763628539833,-401.20484387,7.502e-05,2]
[394492138,1763628539894,378.12,0.00013879,30]
[394492139,1763628540280,472.65,0.00014457,30]
[394492140,1763628540713,567.17,0.00015036,30]
[394492141,1763628541113,661.7,0.00015614,30]
[394492142,1763628541514,756.23,0.00016192,30]
[394492143,1763628541950,850.76,0.00016771,30]
[394492144,1763628542348,889.81262739,0.00017349,30]
[394492145,1763628542542,-318.80269168,7.427e-05,2]
[394492146,1763628546392,-76.02345195,7.427e-05,2]
[394492147,1763628546415,-208.96615428,7.502e-05,2]
[394492148,1763628550353,-153.69344454,7.427e-05,2]
[394492149,1763628552805,-121.20770942,7.427e-05,2]
[394492150,1763628552827,-54.17705997,7.502e-05,2]
[394492151,1763628555206,-220.72409399,7.502e-05,2]
[394492152,1763628555229,-57.00414838,7.553e-05,2]
[394492153,1763628557828,-157.14838582,7.477e-05,2]
[394492154,1763628560081,-140.52735458,7.477e-05,2]
[394492155,1763628560108,-68.45392918,7.553e-05,2]
[394492156,1763628579702,-219.57864953,7.477e-05,2]
[394492157,1763628579727,-123.0358301,7.553e-05,2]
[394492158,1763628582520,-219.57864953,7.402e-05,2]
[394492159,1763628582546,-73.20103333,7.553e-05,2]
[394492160,1763628584360,-178.30505901,7.553e-05,2]
[394492161,1763628584383,-5.41094099,7.553e-05,2]
[394492162,1763628586085,-169.68961702,7.553e-05,2]
[394492163,1763628624616,-218.10128742,7.477e-05,2]
[394492164,1763628627636,-428.08401246,7.477e-05,2]
[394492165,1763628627666,-88.00064562,7.552e-05,2]
[394492166,1763628631589,-169.68961702,7.552e-05,2]
[394492167,1763628631629,299.38,0.00032877,120]
[394492330,1763628633806,-42.30973736,7.552e-05,2]
[394492332,1763628633815,-482.0,7.552e-05,2]
[394492333,1763628633824,-326.58338898,7.553e-05,2]
[394492335,1763628633833,-500.0,7.553e-05,2]
[394492336,1763628633842,-59.83195755,7.553e-05,2]
[394492337,1763628633869,-441.12294732,7.553e-05,2]
[394492338,1763628633878,-502.12076565,7.553e-05,2]
[394492339,1763628633887,-500.0,7.553e-05,2]
[394492340,1763628633896,-500.0,7.553e-05,2]
[394492341,1763628633905,-500.0,7.553e-05,2]
[394492342,1763628633914,-205.52803659,7.565e-05,2]
[394492343,1763628633923,-166.66,7.578e-05,2]
[394492344,1763628633932,-107.73514766,7.579e-05,2]
[394492345,1763628633941,-97735.19358207,7.58e-05,2]
[394492346,1763628633952,-841.6034007,7.58e-05,2]
[394492361,1763628641793,-4e-08,7.476e-05,2]
[394492362,1763628641807,-620.58544138,7.476e-05,2]
[394492363,1763628641816,-500.0,7.577e-05,2]
[394492364,1763628641825,-500.0,7.577e-05,2]
[394492365,1763628641834,-500.0,7.577e-05,2]
[394492366,1763628641843,-500.0,7.577e-05,2]
[394492367,1763628641852,-500.0,7.577e-05,2]
[394492368,1763628641862,-500.0,7.577e-05,2]
[394492369,1763628641873,-500.0,7.577e-05,2]
[394492370,1763628641882,-500.0,7.577e-05,2]
[394492371,1763628641891,-500.0,7.577e-05,2]
[394492372,1763628641901,-500.0,7.577e-05,2]
[394492373,1763628641911,-500.0,7.577e-05,2]
[394492374,1763628641921,-303.16320778,7.577e-05,2]
[394492375,1763628641930,-500.0,7.577e-05,2]
[394492376,1763628641940,-500.0,7.577e-05,2]
[394492377,1763628641949,-500.0,7.577e-05,2]
[394492378,1763628641957,-500.0,7.577e-05,2]
[394492379,1763628641966,-500.0,7.577e-05,2]
[394492380,1763628641976,-500.0,7.577e-05,2]
[394492381,1763628641988,-283.86373577,7.577e-05,2]
[394492382,1763628641997,-500.0,7.577e-05,2]
[394492383,1763628642007,-500.0,7.577e-05,2]
[394492384,1763628642016,-500.0,7.577e-05,2]
[394492385,1763628642025,-500.0,7.577e-05,2]
[394492386,1763628642034,-500.0,7.577e-05,2]
[394492387,1763628642043,-500.0,7.577e-05,2]
[394492388,1763628642052,-500.0,7.577e-05,2]
[394492389,1763628642062,-500.0,7.577e-05,2]
[394492390,1763628642072,-500.0,7.577e-05,2]
[394492391,1763628642081,-500.0,7.577e-05,2]
[394492392,1763628642090,-500.0,7.577e-05,2]
[394492393,1763628642100,-500.0,7.577e-05,2]
[394492394,1763628642109,-500.0,7.577e-05,2]
[394492395,1763628642119,-500.0,7.577e-05,2]
[394492396,1763628642128,-500.0,7.577e-05,2]
[394492397,1763628642137,-500.0,7.577e-05,2]
[394492398,1763628642146,-500.0,7.577e-05,2]
[394492399,1763628642155,-500.0,7.577e-05,2]
[394492400,1763628642164,-500.0,7.577e-05,2]
[394492401,1763628642173,-500.0,7.577e-05,2]
[394492402,1763628642182,-500.0,7.577e-05,2]
[394492403,1763628642191,-500.0,7.577e-05,2]
[394492404,1763628642200,-500.0,7.577e-05,2]
[394492405,1763628642209,-500.0,7.577e-05,2]
[394492406,1763628642218,-500.0,7.577e-05,2]
[394492407,1763628642227,-500.0,7.577e-05,2]
[394492408,1763628642236,-500.0,7.577e-05,2]
[394492409,1763628642245,-500.0,7.577e-05,2]
[394492410,1763628642255,-439.82470514,7.577e-05,2]
[394492411,1763628642299,-60.17529486,7.577e-05,2]
[394492412,1763628642325,-339.69106062,7.577e-05,2]
[394492418,1763628643599,-169.68961702,7.401e-05,2]
[394492419,1763628643626,-160.30893938,7.577e-05,2]
[394492420,1763628643652,-43.64968674,7.577e-05,2]
[394492429,1763628645623,-500.0,7.577e-05,2]
[394492430,1763628645632,-456.35031326,7.577e-05,2]
[394492431,1763628645641,-472.95530156,7.577e-05,2]
[394492432,1763628645651,-500.0,7.577e-05,2]
[394492433,1763628645664,-500.0,7.577e-05,2]
[394492434,1763628645673,-500.0,7.577e-05,2]
[394492435,1763628645682,-500.0,7.577e-05,2]
[394492436,1763628645691,-500.0,7.577e-05,2]
[394492437,1763628645701,-3584.83365871,7.58e-05,2]
[394492444,1763628646952,-3095.88205175,7.58e-05,2]
[394492447,1763628654608,-175.94023157,7.527e-05,2]
[394492448,1763628656276,-176.59541754,7.527e-05,2]
[394492449,1763628657900,-381.89871258,7.527e-05,2]
[394492450,1763628684572,-300.0,7.526e-05,2]
[394492451,1763628684593,-48.09440278,7.527e-05,2]
[394492452,1763628688654,-220.28031838,7.527e-05,2]
[394492453,1763628690322,150.0,0.00014989,30]
[394492454,1763628690742,150.0,0.00015703,30]
[394492455,1763628691139,198.51,0.00016417,30]
[394492456,1763628691535,264.68,0.00017131,30]
[394492457,1763628691935,330.85,0.00017845,30]
[394492458,1763628692321,397.02,0.00018558,30]
[394492459,1763628692847,463.19,0.00019272,30]
[394492460,1763628714597,-193.73907496,7.377e-05,2]
[394492461,1763628714620,-8.95681595,7.452e-05,2]
[394492462,1763628717485,-183.31994176,7.452e-05,2]
[394492463,1763628720416,-86.15315351,7.452e-05,2]
[394492464,1763628720439,-183.41362555,7.527e-05,2]
[394492465,1763628722598,-222.45726927,7.527e-05,2]
[394492466,1763628724668,-183.716,7.526e-05,2]
[394492468,1763628727478,192.352399,0.00014,3]
[394492469,1763628727641,-116.284,7.526e-05,2]
[394492470,1763628727663,-44.26248245,7.527e-05,2]
[394492471,1763628730458,-236.9445648,7.527e-05,2]
[394492472,1763628732864,-256.90292386,7.527e-05,2]
[394492473,1763628735875,-300.0,7.527e-05,2]
[394492474,1763628738646,-236.9445648,7.452e-05,2]
[394492475,1763628738668,-111.77893437,7.527e-05,2]
[394492476,1763628741313,-158.90364742,7.527e-05,2]
[394492477,1763628743031,-222.36247065,7.527e-05,2]
[394492478,1763628747266,-170.35032243,7.527e-05,2]
[394492479,1763628749376,-226.29745523,7.527e-05,2]
[394492480,1763628751089,-247.6827799,7.527e-05,2]
[394492481,1763628753298,-277.45847673,7.527e-05,2]
[394492482,1763628753664,-5573.37057355,7.527e-05,2]
[394492483,1763628753887,-1429.86602136,7.527e-05,2]
[394492484,1763628753915,-7140.27795728,7.527e-05,2]
[394492485,1763628754056,-407.8605428,7.568e-05,2]
[394492486,1763628754083,-500.0,7.577e-05,2]
[394492487,1763628754133,-8184.2889144,7.58e-05,2]
[394492488,1763628754273,-10000.01,7.58e-05,2]
[394492489,1763628754753,-10000.01,7.58e-05,2]
[394492490,1763628755052,-10000.01,7.58e-05,2]
[394492491,1763628756750,-10000.01,7.58e-05,2]
[394492492,1763628756779,-183.8714694,7.58e-05,2]
[394492493,1763628758573,-10000.01,7.58e-05,2]
[394492494,1763628758794,-10000.01,7.58e-05,2]
[394492495,1763628759354,-10000.01,7.58e-05,2]
[394492497,1763628762367,500.0,0.00039852,30]
[394492498,1763628762619,500.0,0.00039852,30]
[394492499,1763628763063,500.0,0.00039852,30]
[394492500,1763628763403,500.0,0.00039852,30]
[394492501,1763628763659,500.0,0.00039852,30]
[394492502,1763628763960,416.66,0.00039852,30]
[394492503,1763628766831,-10000.01,7.58e-05,2]
[394492504,1763628767240,-10000.01,7.58e-05,2]
[394492505,1763628767604,-10000.01,7.58e-05,2]
[394492506,1763628767799,150.0,0.00014111,30]
[394492507,1763628767963,-10000.01,7.58e-05,2]
[394492508,1763628768199,150.0,0.00014783,30]
[394492509,1763628768404,-10000.01,7.58e-05,2]
[394492510,1763628768631,166.53,0.00015455,30]
[394492511,1763628768915,-10000.01,7.58e-05,2]
[394492512,1763628769066,222.04,0.00016127,30]
[394492513,1763628769500,277.55,0.00016799,30]
[394492514,1763628769895,275.20737261,0.00017471,30]
[394492515,1763628769925,57.85262739,0.00017471,30]
[394492516,1763628770016,-10000.01,7.58e-05,2]
[394492517,1763628770429,-10000.01,7.58e-05,2]
[394492518,1763628775813,-280.0576849,7.503e-05,2]
[394492519,1763628779005,-356.32697641,7.503e-05,2]
[394492520,1763628781195,-222.36247065,7.503e-05,2]
[394492521,1763628784827,500.0,0.00039852,30]
[394492522,1763628784998,-265.61784624,7.428e-05,2]
[394492523,1763628787271,-195.99749245,7.428e-05,2]
[394492524,1763628787294,-59.24845312,7.503e-05,2]
[394492525,1763628787591,-180.00441492,7.503e-05,2]
[394492526,1763628787619,-585.94258853,7.577e-05,2]
[394492527,1763628787654,-520.26990212,7.577e-05,2]
[394492528,1763628787687,-520.26990212,7.577e-05,2]
[394492529,1763628787726,-520.26990212,7.577e-05,2]
[394492530,1763628787760,-520.26990212,7.577e-05,2]
[394492531,1763628787796,-520.26990212,7.577e-05,2]
[394492532,1763628787828,-520.26990212,7.577e-05,2]
[394492533,1763628787861,-520.26990212,7.577e-05,2]
[394492534,1763628787895,-520.26990212,7.577e-05,2]
[394492535,1763628788065,-143.79755918,7.577e-05,2]
[394492538,1763628790654,-376.47234294,7.577e-05,2]
[394492539,1763628790704,-520.26990212,7.577e-05,2]
[394492540,1763628790752,-520.26990212,7.577e-05,2]
[394492541,1763628790798,-520.26990212,7.577e-05,2]
[394492542,1763628790840,-520.26990212,7.577e-05,2]
[394492543,1763628790881,-520.26990212,7.577e-05,2]
[394492544,1763628790920,-520.26990212,7.577e-05,2]
[394492545,1763628790961,-520.26990212,7.577e-05,2]
[394492546,1763628790997,-520.26990212,7.577e-05,2]
[394492547,1763628791033,-402.47697808,7.577e-05,2]
[394492548,1763628791107,-117.79292404,7.577e-05,2]
[394492549,1763628791133,-65.41433119,7.577e-05,2]
[394492550,1763628791172,-454.85557093,7.577e-05,2]
[394492551,1763628791204,-520.26990212,7.577e-05,2]
[394492552,1763628791236,-520.26990212,7.577e-05,2]
[394492553,1763628791268,-520.26990212,7.577e-05,2]
[394492554,1763628791300,-520.26990212,7.577e-05,2]
[394492555,1763628791331,-520.26990212,7.577e-05,2]
[394492556,1763628791365,-520.26990212,7.577e-05,2]
[394492557,1763628791398,-520.26990212,7.577e-05,2]
[394492558,1763628791431,-520.26990212,7.577e-05,2]
[394492559,1763628791463,-245.7105221,7.577e-05,2]
[394492560,1763628791555,-274.55938002,7.577e-05,2]
[394492561,1763628791586,-520.26990212,7.577e-05,2]
[394492562,1763628791622,-520.26990212,7.577e-05,2]
[394492563,1763628791655,-520.26990212,7.577e-05,2]
[394492564,1763628791686,-520.26990212,7.577e-05,2]
[394492565,1763628791721,-520.26990212,7.577e-05,2]
[394492566,1763628791862,-520.26990212,7.577e-05,2]
[394492567,1763628791895,-520.26990212,7.577e-05,2]
[394492568,1763628791927,-520.26990212,7.577e-05,2]
[394492569,1763628791958,-520.26990212,7.577e-05,2]
[394492570,1763628792080,-520.26990212,7.577e-05,2]
[394492571,1763628792115,-520.26990212,7.577e-05,2]
[394492572,1763628792148,-520.26990212,7.577e-05,2]
[394492573,1763628792181,-520.26990212,7.577e-05,2]
[394492574,1763628792214,-520.26990212,7.577e-05,2]
[394492575,1763628792247,-520.26990212,7.577e-05,2]
[394492576,1763628792274,-1098.0,7.579e-05,2]
[394492577,1763628792301,-300.0,7.579e-05,2]
[394492578,1763628792979,-220.26990212,7.58e-05,2]
[394492579,1763628792992,-300.0,7.58e-05,2]
[394492580,1763628793008,-960.77117456,7.58e-05,2]
[394492581,1763628793046,-10000.01,7.58e-05,2]
[394492582,1763628793082,-10000.01,7.58e-05,2]
[394492583,1763628793112,-10000.01,7.58e-05,2]
[394492584,1763628793185,-159.37527628,7.58e-05,2]
[394492585,1763628793710,-10000.01,7.58e-05,2]
[394492586,1763628793817,-10000.01,7.58e-05,2]
[394492587,1763628798018,-324.11002486,7.577e-05,2]
[394492588,1763628799761,-184.14610089,7.501e-05,2]
[394492589,1763628802793,-3664.42886465,7.501e-05,2]
[394492590,1763628802830,-233.98580273,7.577e-05,2]
[394492591,1763628802860,-500.0,7.577e-05,2]
[394492592,1763628802900,-558.09582759,7.577e-05,2]
[394492593,1763628802985,-558.09582759,7.577e-05,2]
[394492594,1763628803018,-558.09582759,7.577e-05,2]
[394492595,1763628803052,-558.09582759,7.577e-05,2]
[394492596,1763628803085,-558.09582759,7.577e-05,2]
[394492597,1763628803119,-558.09582759,7.577e-05,2]
[394492598,1763628803153,-558.09582759,7.577e-05,2]
[394492599,1763628803187,-558.09582759,7.577e-05,2]
[394492600,1763628803221,-558.09582759,7.577e-05,2]
[394492601,1763628803255,-512.38093097,7.577e-05,2]
[394492602,1763628803352,-45.71489662,7.577e-05,2]
[394492603,1763628803384,-558.09582759,7.577e-05,2]
[394492604,1763628803418,-558.09582759,7.577e-05,2]
[394492605,1763628803451,-558.09582759,7.577e-05,2]
[394492606,1763628803485,-558.09582759,7.577e-05,2]
[394492607,1763628803516,-558.09582759,7.577e-05,2]
[394492608,1763628803547,-558.09582759,7.577e-05,2]
[394492609,1763628803580,-558.09582759,7.577e-05,2]
[394492610,1763628803612,-558.09582759,7.577e-05,2]
[394492611,1763628803643,-420.95113773,7.577e-05,2]
[394492612,1763628803726,-137.14468986,7.577e-05,2]
[394492613,1763628803758,-558.09582759,7.577e-05,2]
[394492614,1763628803790,-558.09582759,7.577e-05,2]
[394492615,1763628803823,-558.09582759,7.577e-05,2]
[394492616,1763628803854,-558.09582759,7.577e-05,2]
[394492617,1763628803888,-558.09582759,7.577e-05,2]
[394492618,1763628803918,-558.09582759,7.577e-05,2]
[394492619,1763628803949,-558.09582759,7.577e-05,2]
[394492620,1763628803980,-558.09582759,7.577e-05,2]
[394492621,1763628804012,-238.09155125,7.577e-05,2]
[394492622,1763628804138,-320.00427634,7.577e-05,2]
[394492623,1763628804172,-558.09582759,7.577e-05,2]
[394492624,1763628804206,-558.09582759,7.577e-05,2]
[394492625,1763628804239,-558.09582759,7.577e-05,2]
[394492626,1763628804272,-558.09582759,7.577e-05,2]
[394492627,1763628804305,-558.09582759,7.577e-05,2]
[394492628,1763628804336,-558.09582759,7.577e-05,2]
[394492629,1763628804368,-558.09582759,7.577e-05,2]
[394492630,1763628804403,-300.0,7.58e-05,2]
[394492631,1763628804883,-77.47194191,7.58e-05,2]
[394492632,1763628804907,-558.09582759,7.58e-05,2]
[394492633,1763628804923,-1546.65986106,7.58e-05,2]
[394492634,1763628808001,4014.43613766,7.501e-05,2]
[394492635,1763628808732,-152.46570568,7.58e-05,2]
[394492636,1763628811109,-201.05386391,7.58e-05,2]
[394492637,1763628815196,-225.35174881,7.58e-05,2]
[394492638,1763628817525,-303.52568229,7.58e-05,2]
[394492639,1763628819133,-174.4191205,7.58e-05,2]
[394492640,1763628821501,-205.29183447,7.58e-05,2]
[394492641,1763628823264,5985.57386234,7.504e-05,2]
[394492642,1763628823288,10000.01,7.504e-05,2]
[394492643,1763628823311,10000.01,7.504e-05,2]
[394492644,1763628823333,10000.01,7.504e-05,2]
[394492645,1763628823354,10000.01,7.504e-05,2]
[394492646,1763628823376,10000.01,7.504e-05,2]
[394492647,1763628823398,10000.01,7.504e-05,2]
[394492648,1763628823420,10000.01,7.504e-05,2]
[394492649,1763628823443,10000.01,7.504e-05,2]
[394492650,1763628823668,-244.71427823,7.504e-05,2]
[394492651,1763628825811,-227.89170587,7.504e-05,2]
[394492653,1763628828593,-172.18155402,7.504e-05,2]
[394492654,1763628830191,-169.21693772,7.504e-05,2]
[394492655,1763628833466,-451.42191563,7.504e-05,2]
[394492656,1763628846368,150.0,0.00016166,30]
[394492657,1763628846794,150.0,0.00016936,30]
[394492658,1763628847348,150.0,0.00017706,30]
[394492659,1763628850171,-191.13803225,7.503e-05,2]
[394492660,1763628852904,-108.86196775,7.503e-05,2]
[394492661,1763628852927,-48.43629317,7.504e-05,2]
[394492662,1763628855880,-271.94114954,7.504e-05,2]
[394492663,1763628858234,-228.20064166,7.504e-05,2]
[394492664,1763628860391,-274.97262644,7.504e-05,2]
[394492665,1763628863266,-294.85237292,7.504e-05,2]
[394492666,1763628879681,-266.50612748,7.504e-05,2]
[394492668,1763628882107,-300.4735758,7.504e-05,2]
[394492669,1763628884766,-232.76515431,7.504e-05,2]
[394492670,1763628886961,-250.0,7.504e-05,2]
[394492671,1763628889577,-256.13285679,7.504e-05,2]
[394492672,1763628891927,-340.99022222,7.504e-05,2]
[394492673,1763628893538,-243.86714321,7.504e-05,2]
[394492674,1763628895570,-244.9244105,7.504e-05,2]
[394492675,1763628897235,-282.85205043,7.504e-05,2]
[394492676,1763628900231,-154.27065115,7.504e-05,2]
[394492677,1763628901767,-164.1366343,7.503e-05,2]
[394492678,1763628904589,-135.8633657,7.503e-05,2]
[394492679,1763628904612,-156.61660259,7.503e-05,2]
[394492680,1763628909782,277.07218957,0.00039841,93]
[394492681,1763628919682,587.25858828,0.00039841,93]
[394492682,1763628924564,-143.38339741,7.503e-05,2]
[394492683,1763628924585,-171.15749456,7.503e-05,2]
[394492684,1763628926710,-128.84250544,7.503e-05,2]
[394492685,1763628926733,-231.03220155,7.503e-05,2]
[394492686,1763628929069,-68.96779845,7.503e-05,2]
[394492687,1763628929098,-82.49202413,7.504e-05,2]
[394492688,1763628930986,-318.05687493,7.504e-05,2]
[394492689,1763628933054,-192.5489026,7.504e-05,2]
[394492690,1763628935880,-300.0,7.504e-05,2]
[394492691,1763628939512,-220.2713657,7.504e-05,2]
[394492692,1763628941193,-331.63594829,7.504e-05,2]
[394492693,1763628943433,-187.1797317,7.504e-05,2]
[394492694,1763628945311,-178.53406059,7.504e-05,2]
[394492696,1763628948016,-204.57858822,7.504e-05,2]
[394492697,1763628949325,150.01,8.543e-05,92]
[394492698,1763628950218,-198.13254831,7.504e-05,2]
[394492699,1763628953466,-216.03048336,7.504e-05,2]
[394492700,1763628955692,-283.96951664,7.504e-05,2]
[394492701,1763628959564,-269.06197966,7.504e-05,2]
[394492703,1763628984644,-169.46776571,7.504e-05,2]
[394492704,1763628987505,-355.22094407,7.504e-05,2]
[394492705,1763628989377,-213.80379844,7.504e-05,2]
[394492706,1763628990987,-194.0172991,7.504e-05,2]
[394492707,1763628992685,-471.24644141,7.504e-05,2]
[394492708,1763628994927,-300.0,7.504e-05,2]
[394492709,1763628997521,150.0,0.0001764,30]
[394492710,1763629029603,-171.85973366,7.429e-05,2]
[394492711,1763629031910,-203.19679978,7.429e-05,2]
[394492712,1763629035146,-406.02233567,7.429e-05,2]
[394492713,1763629037832,-280.54840872,7.429e-05,2]
[394492714,1763629042483,-230.50237124,7.429e-05,2]
[394492715,1763629044269,-228.82068515,7.429e-05,2]
[394492716,1763629045993,-233.72585195,7.429e-05,2]
[394492717,1763629048246,-209.56734536,7.429e-05,2]
[394492718,1763629051004,-162.98942841,7.429e-05,2]
[394492719,1763629053161,-188.99858215,7.429e-05,2]
[394492720,1763629055871,-251.78745099,7.429e-05,2]
[394492722,1763629058850,-231.08331663,7.429e-05,2]
[394492723,1763629060932,-192.67114769,7.429e-05,2]
[394492724,1763629063259,-257.00101089,7.429e-05,2]
[394492725,1763629064851,-248.21646016,7.429e-05,2]
[394492726,1763629067711,-176.01466442,7.429e-05,2]
[394492727,1763629070478,-169.52504014,7.429e-05,2]
[394492728,1763629076795,-193.44523145,7.429e-05,2]
[394492729,1763629078516,-234.36849648,7.429e-05,2]
[394492730,1763629081137,-164.08738128,7.429e-05,2]
[394492731,1763629083414,-163.30045192,7.429e-05,2]
[394492732,1763629085043,-171.85733894,7.429e-05,2]
[394492733,1763629087574,-392.9997283,7.429e-05,2]
[394492734,1763629089582,-300.00826151,7.429e-05,2]
[394492735,1763629092366,-210.32088394,7.429e-05,2]
[394492736,1763629094591,-225.60230547,7.429e-05,2]
[394492737,1763629096432,-259.12135482,7.429e-05,2]
[394492738,1763629101281,-154.94507574,7.429e-05,2]
[394492739,1763629103057,-343.67678913,7.429e-05,2]
[394492740,1763629108504,-300.0,7.429e-05,2]
[394492741,1763629110281,-300.0,7.429e-05,2]
[394492742,1763629124301,5888.0,0.000141,3]
[394492743,1763629127134,5888.0,0.000141,3]
[394492744,1763629129912,2385.68112581,0.000141,3]
[394492745,1763629181782,161.55,0.00032876,120]
[394492746,1763629190731,500.0,0.00039841,30]
[394492748,1763629326964,152.278983,0.00014,3]
[394492749,1763629332858,520.0,0.000141,3]
[394492751,1763629366619,150.0,0.0001106,30]
[394492752,1763629367503,150.0,0.00011587,30]
[394492753,1763629367931,150.0,0.00012113,30]
[394492754,1763629368330,180.61,0.0001264,30]
[394492755,1763629368730,225.76,0.00013167,30]
[394492756,1763629369112,270.91,0.00013693,30]
[394492757,1763629369524,316.06,0.0001422,30]
[394492758,1763629369937,361.21,0.00014747,30]
[394492759,1763629370339,406.36,0.00015273,30]
[394492760,1763629370741,25.48737261,0.000158,30]
[394492761,1763629370763,202.29262739,0.000158,30]
[394492763,1763629458750,339.0,0.00028082,120]
[394492771,1763629596498,5000.0,0.00015,10]
[394492772,1763629641234,1328.40868282,0.0003984,120]
[394492777,1763629757505,1000.0,0.0003984,120]
[394492779,1763629776166,198.2,0.00032877,120]
[394492801,1763629831628,-208.6877504,7.409e-05,2]
[394492803,1763629831637,-300.0,7.451e-05,2]
[394492804,1763629831648,-300.0,7.451e-05,2]
[394492805,1763629831658,-300.0,7.451e-05,2]
[394492806,1763629831668,-500.307216,7.453e-05,2]
[394492807,1763629831677,-500.0,7.453e-05,2]
[394492808,1763629831686,-500.0,7.453e-05,2]
[394492809,1763629831696,-500.0,7.453e-05,2]
[394492810,1763629831706,-500.0,7.453e-05,2]
[394492811,1763629831716,-500.0,7.453e-05,2]
[394492812,1763629831726,-500.0,7.453e-05,2]
[394492813,1763629831735,-500.0,7.453e-05,2]
[394492814,1763629831746,-500.0,7.453e-05,2]
[394492815,1763629831756,-500.0,7.453e-05,2]
[394492816,1763629831766,-501.69828739,7.453e-05,2]
[394492817,1763629831775,-500.0,7.453e-05,2]
[394492818,1763629831786,-500.0,7.453e-05,2]
[394492819,1763629831796,-500.0,7.453e-05,2]
[394492820,1763629831806,-363.95233423,7.453e-05,2]
[394492821,1763629831816,-501.40588329,7.453e-05,2]
[394492822,1763629831826,-500.0,7.453e-05,2]
[394492823,1763629831835,-500.0,7.453e-05,2]
[394492824,1763629831844,-502.21904381,7.453e-05,2]
[394492825,1763629831854,-510.14664152,7.453e-05,2]
[394492826,1763629831863,-500.0,7.453e-05,2]
[394492827,1763629831873,-441.85040382,7.453e-05,2]
[394492828,1763629831885,-58.14959618,7.453e-05,2]
[394492829,1763629831894,-500.0,7.453e-05,2]
[394492830,1763629831904,-7911.77644805,7.458e-05,2]
[394492836,1763629837618,-3138.04255411,7.458e-05,2]
[394492838,1763629837672,-1975.97652487,7.458e-05,2]
[394492861,1763629840913,-4e-08,7.458e-05,2]
[394492862,1763629840925,-328.05841363,7.458e-05,2]
[394492863,1763629840935,-1687.0,7.478e-05,2]
[394492864,1763629840944,-500.0,7.478e-05,2]
[394492865,1763629840954,-231.25878992,7.478e-05,2]
[394492866,1763629840963,-1070.0,7.478e-05,2]
[394492867,1763629840974,-194.500939,7.478e-05,2]
[394492868,1763629840984,-165.46576268,7.478e-05,2]
[394492869,1763629840993,-500.0,7.478e-05,2]
[394492870,1763629841002,-500.0,7.478e-05,2]
[394492871,1763629841014,-500.0,7.478e-05,2]
[394492872,1763629841023,-500.0,7.478e-05,2]
[394492873,1763629841032,-500.0,7.478e-05,2]
[394492874,1763629841041,-500.0,7.478e-05,2]
[394492875,1763629841051,-500.0,7.478e-05,2]
[394492876,1763629841061,-500.0,7.478e-05,2]
[394492877,1763629841070,-500.0,7.478e-05,2]
[394492878,1763629841079,-625.00000004,7.478e-05,2]
[394492879,1763629841090,-500.0,7.478e-05,2]
[394492880,1763629841099,-500.0,7.478e-05,2]
[394492881,1763629841108,-500.0,7.478e-05,2]
[394492882,1763629841117,-500.0,7.478e-05,2]
[394492883,1763629841126,-500.0,7.478e-05,2]
[394492884,1763629841136,-500.0,7.478e-05,2]
[394492885,1763629841147,-500.0,7.478e-05,2]
[394492886,1763629841157,-500.0,7.478e-05,2]
[394492887,1763629841166,-500.0,7.478e-05,2]
[394492888,1763629841175,-500.0,7.478e-05,2]
[394492889,1763629841185,-929.73692758,7.478e-05,2]
[394492890,1763629841194,-929.73692758,7.478e-05,2]
[394492891,1763629841203,-929.73692758,7.478e-05,2]
[394492892,1763629841213,-929.73692758,7.478e-05,2]
[394492893,1763629841222,-929.73692758,7.478e-05,2]
[394492894,1763629841231,-929.73692758,7.478e-05,2]